[Event "Titled Tuesday Blitz May 16 Early 2023"]
[White "Joubert, Dantelle"]
[Black "Weber, Samuel"]
[WhiteFideId "14310813"]
[BlackFideId "12924008"]
[WhiteElo "1507"]
[BlackElo "2162"]
[Result "0-1"]
[Round "04"]
[TimeControl "180+2"]
[Date "2023.05.16"]
[WhiteClock "0:00:29"]
[BlackClock "0:02:41"]

1. d4 {[%clk 0:03:00]}  Nf6 {[%clk 0:02:52]} 2. c4 {[%clk 0:03:00]}  c5 {[%clk 0:02:50]} 3. d5 {[%clk 0:03:00]}  b5 {[%clk 0:02:49]} 4. Qc2 {[%clk 0:02:59]}  b4 {[%clk 0:02:48]} 5. Nf3 {[%clk 0:02:56]}  d6 {[%clk 0:02:47]} 6. g3 {[%clk 0:02:56]}  e5 {[%clk 0:02:48]} 7. dxe6 {[%clk 0:02:55]}  fxe6 {[%clk 0:02:47]} 8. Bg2 {[%clk 0:02:54]}  Bb7 {[%clk 0:02:47]} 9. O-O {[%clk 0:02:54]}  Nbd7 {[%clk 0:02:47]} 10. Ng5 {[%clk 0:02:49]}  Bxg2 {[%clk 0:02:46]} 11. Kxg2 {[%clk 0:02:33]}  Qe7 {[%clk 0:02:47]} 12. e4 {[%clk 0:02:16]}  h6 {[%clk 0:02:46]} 13. Nh3 {[%clk 0:02:10]}  g5 {[%clk 0:02:46]} 14. b3 {[%clk 0:02:04]}  Bg7 {[%clk 0:02:46]} 15. Bb2 {[%clk 0:02:05]}  e5 {[%clk 0:02:47]} 16. a3 {[%clk 0:01:53]}  O-O {[%clk 0:02:45]} 17. axb4 {[%clk 0:01:52]}  cxb4 {[%clk 0:02:46]} 18. Ng1 {[%clk 0:01:29]}  Nc5 {[%clk 0:02:45]} 19. f3 {[%clk 0:01:28]}  a5 {[%clk 0:02:46]} 20. Nd2 {[%clk 0:01:25]}  Nfd7 {[%clk 0:02:45]} 21. Rf2 {[%clk 0:01:20]}  Ne6 {[%clk 0:02:45]} 22. Nf1 {[%clk 0:01:19]}  Ndc5 {[%clk 0:02:45]} 23. Ne3 {[%clk 0:01:17]}  Nd4 {[%clk 0:02:46]} 24. Bxd4 {[%clk 0:00:54]}  exd4 {[%clk 0:02:46]} 25. Nd5 {[%clk 0:00:54]}  Qb7 {[%clk 0:02:46]} 26. Rd1 {[%clk 0:00:50]}  d3 {[%clk 0:02:45]} 27. Rxd3 {[%clk 0:00:49]}  Nxd3 {[%clk 0:02:42]} 28. Qxd3 {[%clk 0:00:49]}  a4 {[%clk 0:02:43]} 29. bxa4 {[%clk 0:00:44]}  b3 {[%clk 0:02:43]} 30. Nh3 {[%clk 0:00:40]}  b2 {[%clk 0:02:43]} 31. Rf1 {[%clk 0:00:37]}  Rxa4 {[%clk 0:02:42]} 32. Nc3 {[%clk 0:00:34]}  Bxc3 {[%clk 0:02:40]} 33. Qxc3 {[%clk 0:00:29]}  b1=Q {[%clk 0:02:41]} 0-1


[Site "https://www.chess.com"]

[Event "Titled Tuesday Blitz May 16 Early 2023"]
[White "Aung Thant Zin"]
[Black "De Souza, Cristiano Gomes"]
[WhiteFideId "13000063"]
[BlackFideId "2151758"]
[WhiteElo "2278"]
[BlackElo "2068"]
[Result "0-1"]
[Round "04"]
[TimeControl "180+2"]
[Date "2023.05.16"]
[WhiteClock "0:00:00"]
[BlackClock "0:00:28"]

1. e4 {[%clk 0:03:00]}  c5 {[%clk 0:02:59]} 2. Nf3 {[%clk 0:03:00]}  d6 {[%clk 0:02:58]} 3. Bb5+ {[%clk 0:03:00]}  Bd7 {[%clk 0:02:58]} 4. Bxd7+ {[%clk 0:02:55]}  Qxd7 {[%clk 0:02:58]} 5. O-O {[%clk 0:02:54]}  g6 {[%clk 0:02:56]} 6. c3 {[%clk 0:02:52]}  Bg7 {[%clk 0:02:57]} 7. d4 {[%clk 0:02:52]}  e6 {[%clk 0:02:53]} 8. Nbd2 {[%clk 0:02:49]}  Ne7 {[%clk 0:02:52]} 9. Re1 {[%clk 0:02:47]}  Nbc6 {[%clk 0:02:51]} 10. a4 {[%clk 0:02:35]}  O-O-O {[%clk 0:02:48]} 11. a5 {[%clk 0:02:32]}  h6 {[%clk 0:02:44]} 12. Nc4 {[%clk 0:02:18]}  d5 {[%clk 0:02:36]} 13. exd5 {[%clk 0:02:13]}  exd5 {[%clk 0:02:33]} 14. Nce5 {[%clk 0:02:06]}  Nxe5 {[%clk 0:02:32]} 15. dxe5 {[%clk 0:02:00]}  Nc6 {[%clk 0:02:30]} 16. Bf4 {[%clk 0:01:54]}  Rhe8 {[%clk 0:02:29]} 17. h3 {[%clk 0:01:45]}  Qf5 {[%clk 0:02:27]} 18. Bg3 {[%clk 0:01:44]}  Nxe5 {[%clk 0:02:27]} 19. Bxe5 {[%clk 0:01:37]}  Bxe5 {[%clk 0:02:26]} 20. a6 {[%clk 0:01:32]}  b6 {[%clk 0:02:26]} 21. Qa4 {[%clk 0:01:30]}  Kc7 {[%clk 0:01:31]} 22. Rad1 {[%clk 0:01:22]}  Re6 {[%clk 0:01:27]} 23. Re3 {[%clk 0:00:49]}  Qf4 {[%clk 0:01:16]} 24. Qc2 {[%clk 0:00:24]}  Bd6 {[%clk 0:01:07]} 25. Red3 {[%clk 0:00:18]}  g5 {[%clk 0:00:56]} 26. Rxd5 {[%clk 0:00:16]}  g4 {[%clk 0:00:56]} 27. hxg4 {[%clk 0:00:15]}  Qxg4 {[%clk 0:00:55]} 28. Qf5 {[%clk 0:00:14]}  Qxf5 {[%clk 0:00:45]} 29. Rxf5 {[%clk 0:00:14]}  Re2 {[%clk 0:00:44]} 30. Rxf7+ {[%clk 0:00:08]}  Kc6 {[%clk 0:00:44]} 31. Rf6 {[%clk 0:00:07]}  Rxb2 {[%clk 0:00:41]} 32. Ne5+ {[%clk 0:00:07]}  Kb5 {[%clk 0:00:40]} 33. Rfxd6 {[%clk 0:00:04]}  Re8 {[%clk 0:00:36]} 34. c4+ {[%clk 0:00:02]}  Kb4 {[%clk 0:00:32]} 35. R6d5 {[%clk 0:00:03]}  Re2 {[%clk 0:00:29]} 36. g3 {[%clk 0:00:00]}  R2xe5 {[%clk 0:00:28]} 0-1


[Site "https://www.chess.com"]

[Event "Titled Tuesday Blitz May 16 Early 2023"]
[White "Rodriguez Santiago, Jaime"]
[Black "Vargas, Mauricio"]
[WhiteFideId "3100898"]
[BlackFideId "4404572"]
[WhiteElo "2025"]
[BlackElo "1986"]
[Result "1-0"]
[Round "04"]
[TimeControl "180+2"]
[Date "2023.05.16"]
[WhiteClock "0:01:06"]
[BlackClock "0:00:00"]

1. c4 {[%clk 0:03:00]}  Nc6 {[%clk 0:02:06]} 2. g3 {[%clk 0:02:58]}  e5 {[%clk 0:02:05]} 3. Bg2 {[%clk 0:02:58]}  f5 {[%clk 0:02:05]} 4. Nc3 {[%clk 0:02:58]}  Nf6 {[%clk 0:02:06]} 5. d3 {[%clk 0:02:58]}  Bb4 {[%clk 0:02:06]} 6. e3 {[%clk 0:02:56]}  Bxc3+ {[%clk 0:02:07]} 7. bxc3 {[%clk 0:02:56]}  O-O {[%clk 0:02:08]} 8. Nf3 {[%clk 0:02:55]}  d6 {[%clk 0:02:08]} 9. O-O {[%clk 0:02:54]}  Qe8 {[%clk 0:02:06]} 10. Nd2 {[%clk 0:02:45]}  Rb8 {[%clk 0:02:01]} 11. Rb1 {[%clk 0:02:43]}  Na5 {[%clk 0:01:55]} 12. Ba3 {[%clk 0:02:36]}  c5 {[%clk 0:01:50]} 13. d4 {[%clk 0:02:13]}  b6 {[%clk 0:01:41]} 14. dxc5 {[%clk 0:02:09]}  dxc5 {[%clk 0:01:37]} 15. Bxc5 {[%clk 0:02:07]}  Rf7 {[%clk 0:01:31]} 16. Bb4 {[%clk 0:02:04]}  Be6 {[%clk 0:01:07]} 17. Bxa5 {[%clk 0:02:00]}  bxa5 {[%clk 0:01:05]} 18. Rxb8 {[%clk 0:02:01]}  Qxb8 {[%clk 0:01:03]} 19. Qa4 {[%clk 0:02:00]}  Qc7 {[%clk 0:00:45]} 20. Rb1 {[%clk 0:01:53]}  e4 {[%clk 0:00:35]} 21. Bf1 {[%clk 0:01:44]}  Rd7 {[%clk 0:00:33]} 22. Nb3 {[%clk 0:01:43]}  Rd8 {[%clk 0:00:22]} 23. Nd4 {[%clk 0:01:41]}  Bd7 {[%clk 0:00:21]} 24. Qb3 {[%clk 0:01:38]}  Rf8 {[%clk 0:00:19]} 25. Qb7 {[%clk 0:01:35]}  Qd6 {[%clk 0:00:15]} 26. Nb5 {[%clk 0:01:27]}  Qe6 {[%clk 0:00:09]} 27. Nc7 {[%clk 0:01:19]}  Qf7 {[%clk 0:00:07]} 28. Nd5 {[%clk 0:01:15]}  Kh8 {[%clk 0:00:06]} 29. Nxf6 {[%clk 0:01:12]}  gxf6 {[%clk 0:00:05]} 30. Rd1 {[%clk 0:01:08]}  Bc8 {[%clk 0:00:04]} 31. Qxf7 {[%clk 0:01:07]}  Rxf7 {[%clk 0:00:04]} 32. Rd8+ {[%clk 0:01:07]}  Kg7 {[%clk 0:00:02]} 33. Rxc8 {[%clk 0:01:07]}  Rd7 {[%clk 0:00:02]} 34. c5 {[%clk 0:01:07]}  Rd1 {[%clk 0:00:02]} 35. c6 {[%clk 0:01:07]}  Rc1 {[%clk 0:00:00]} 36. c4 {[%clk 0:01:06]} 1-0


[Site "https://www.chess.com"]

[Event "Titled Tuesday Blitz May 16 Early 2023"]
[White "Muhammed, Shuaau"]
[Black "stratacticos"]
[WhiteFideId "16700406"]
[WhiteElo "1922"]
[BlackElo "1867"]
[Result "0-1"]
[Round "04"]
[TimeControl "180+2"]
[Date "2023.05.16"]
[WhiteClock "0:01:14"]
[BlackClock "0:01:00"]

1. e4 {[%clk 0:03:00]}  c5 {[%clk 0:02:58]} 2. Nf3 {[%clk 0:03:00]}  Nc6 {[%clk 0:02:58]} 3. Nc3 {[%clk 0:03:00]}  a6 {[%clk 0:02:54]} 4. a4 {[%clk 0:02:59]}  e6 {[%clk 0:02:49]} 5. Bc4 {[%clk 0:02:58]}  Nge7 {[%clk 0:02:47]} 6. d4 {[%clk 0:02:58]}  cxd4 {[%clk 0:02:47]} 7. Nxd4 {[%clk 0:02:59]}  Nxd4 {[%clk 0:02:47]} 8. Qxd4 {[%clk 0:02:58]}  Nc6 {[%clk 0:02:47]} 9. Qd3 {[%clk 0:02:58]}  Ne5 {[%clk 0:02:43]} 10. Qe2 {[%clk 0:02:57]}  Nxc4 {[%clk 0:02:43]} 11. Qxc4 {[%clk 0:02:58]}  b5 {[%clk 0:02:34]} 12. Qd4 {[%clk 0:02:49]}  b4 {[%clk 0:02:32]} 13. Na2 {[%clk 0:02:46]}  a5 {[%clk 0:02:29]} 14. O-O {[%clk 0:02:46]}  Qc7 {[%clk 0:02:14]} 15. Be3 {[%clk 0:02:43]}  e5 {[%clk 0:01:59]} 16. Qd2 {[%clk 0:02:37]}  Bc5 {[%clk 0:01:55]} 17. c3 {[%clk 0:02:36]}  b3 {[%clk 0:01:49]} 18. Nc1 {[%clk 0:02:35]}  Rb8 {[%clk 0:01:48]} 19. Bxc5 {[%clk 0:02:15]}  Qxc5 {[%clk 0:01:47]} 20. Ra3 {[%clk 0:02:14]}  Ba6 {[%clk 0:01:44]} 21. Re1 {[%clk 0:02:10]}  Bc4 {[%clk 0:01:41]} 22. Nd3 {[%clk 0:02:08]}  Bxd3 {[%clk 0:01:33]} 23. Qxd3 {[%clk 0:02:08]}  O-O {[%clk 0:01:33]} 24. Qxd7 {[%clk 0:02:07]}  Rfd8 {[%clk 0:01:31]} 25. Qg4 {[%clk 0:01:54]}  Rd2 {[%clk 0:01:30]} 26. Rb1 {[%clk 0:01:53]}  Qxf2+ {[%clk 0:01:28]} 27. Kh1 {[%clk 0:01:52]}  Rxb2 {[%clk 0:01:23]} 28. Rd1 {[%clk 0:01:50]}  Rd2 {[%clk 0:01:21]} 29. Rb1 {[%clk 0:01:39]}  b2 {[%clk 0:01:17]} 30. Rb3 {[%clk 0:01:36]}  Rbd8 {[%clk 0:01:09]} 31. h3 {[%clk 0:01:30]}  h5 {[%clk 0:01:04]} 32. Qf3 {[%clk 0:01:20]}  Qxf3 {[%clk 0:01:00]} 33. gxf3 {[%clk 0:01:14]}  Rd1+ {[%clk 0:01:00]} 0-1


[Site "https://www.chess.com"]

[Event "Titled Tuesday Blitz May 16 Early 2023"]
[White "Lenderman, Aleksandr"]
[Black "Nakamura, Hikaru"]
[WhiteFideId "2021285"]
[BlackFideId "2016192"]
[WhiteElo "2607"]
[BlackElo "2885"]
[Result "1-0"]
[Round "05"]
[TimeControl "180+2"]
[Date "2023.05.16"]
[WhiteClock "0:00:02"]
[BlackClock "0:00:08"]

1. d4 {[%clk 0:03:00]}  e6 {[%clk 0:02:58]} 2. e4 {[%clk 0:02:58]}  a6 {[%clk 0:02:56]} 3. Nf3 {[%clk 0:02:56]}  d6 {[%clk 0:02:52]} 4. c4 {[%clk 0:02:55]}  g6 {[%clk 0:02:50]} 5. Nc3 {[%clk 0:02:55]}  Bg7 {[%clk 0:02:50]} 6. Be2 {[%clk 0:02:55]}  Nf6 {[%clk 0:02:50]} 7. O-O {[%clk 0:02:55]}  O-O {[%clk 0:02:50]} 8. Be3 {[%clk 0:02:53]}  b6 {[%clk 0:02:48]} 9. d5 {[%clk 0:02:49]}  Re8 {[%clk 0:02:43]} 10. Qc2 {[%clk 0:02:46]}  a5 {[%clk 0:02:37]} 11. Rad1 {[%clk 0:02:46]}  e5 {[%clk 0:02:34]} 12. a3 {[%clk 0:02:43]}  Na6 {[%clk 0:02:34]} 13. Rb1 {[%clk 0:02:41]}  Ng4 {[%clk 0:01:49]} 14. Bg5 {[%clk 0:02:40]}  f6 {[%clk 0:01:50]} 15. Bh4 {[%clk 0:02:38]}  h5 {[%clk 0:01:48]} 16. h3 {[%clk 0:02:36]}  Nh6 {[%clk 0:01:49]} 17. b4 {[%clk 0:02:35]}  g5 {[%clk 0:01:47]} 18. Bg3 {[%clk 0:02:35]}  f5 {[%clk 0:01:48]} 19. exf5 {[%clk 0:02:28]}  axb4 {[%clk 0:01:47]} 20. axb4 {[%clk 0:02:28]}  Nxf5 {[%clk 0:01:34]} 21. Bd3 {[%clk 0:02:28]}  Rf8 {[%clk 0:01:35]} 22. Ne4 {[%clk 0:02:21]}  Bh6 {[%clk 0:01:32]} 23. c5 {[%clk 0:02:09]}  bxc5 {[%clk 0:01:25]} 24. bxc5 {[%clk 0:02:09]}  g4 {[%clk 0:01:26]} 25. hxg4 {[%clk 0:02:08]}  hxg4 {[%clk 0:01:26]} 26. Nh2 {[%clk 0:02:08]}  Bf4 {[%clk 0:01:08]} 27. Bxf4 {[%clk 0:01:49]}  exf4 {[%clk 0:01:08]} 28. Nxg4 {[%clk 0:01:50]}  Qh4 {[%clk 0:00:54]} 29. Nh2 {[%clk 0:01:23]}  Nd4 {[%clk 0:00:47]} 30. Qc3 {[%clk 0:01:19]}  Qh8 {[%clk 0:00:46]} 31. cxd6 {[%clk 0:01:12]}  Bf5 {[%clk 0:00:46]} 32. Qd2 {[%clk 0:01:04]}  Bxe4 {[%clk 0:00:43]} 33. Bxe4 {[%clk 0:01:02]}  Nc5 {[%clk 0:00:44]} 34. Nf3 {[%clk 0:00:42]}  Ra4 {[%clk 0:00:33]} 35. Nxd4 {[%clk 0:00:11]}  Nxe4 {[%clk 0:00:21]} 36. Qb2 {[%clk 0:00:11]}  Qxd4 {[%clk 0:00:11]} 37. Qxd4 {[%clk 0:00:10]}  Rxd4 {[%clk 0:00:12]} 38. dxc7 {[%clk 0:00:10]}  Rc4 {[%clk 0:00:12]} 39. Rfc1 {[%clk 0:00:06]}  Nc3 {[%clk 0:00:13]} 40. Rxc3 {[%clk 0:00:05]}  Rxc3 {[%clk 0:00:14]} 41. d6 {[%clk 0:00:06]}  Kf7 {[%clk 0:00:14]} 42. Rb8 {[%clk 0:00:04]}  Re8 {[%clk 0:00:09]} 43. d7 {[%clk 0:00:02]}  Re6 {[%clk 0:00:08]} 44. c8=Q {[%clk 0:00:01]}  Ke7 {[%clk 0:00:09]} 45. Qd8+ {[%clk 0:00:01]}  Kd6 {[%clk 0:00:09]} 46. Qf8+ {[%clk 0:00:01]}  Kxd7 {[%clk 0:00:07]} 47. Qf7+ {[%clk 0:00:02]}  Kd6 {[%clk 0:00:07]} 48. Rb6+ {[%clk 0:00:01]}  Kc5 {[%clk 0:00:08]} 49. Qxe6 {[%clk 0:00:02]}  Rc1+ {[%clk 0:00:08]} 50. Kh2 {[%clk 0:00:02]} 1-0


[Site "https://www.chess.com"]

[Event "Titled Tuesday Blitz May 16 Early 2023"]
[White "Nihal Sarin"]
[Black "Kovalenko, Igor"]
[WhiteFideId "25092340"]
[BlackFideId "14117908"]
[WhiteElo "2689"]
[BlackElo "2574"]
[Result "1/2-1/2"]
[Round "05"]
[TimeControl "180+2"]
[Date "2023.05.16"]
[WhiteClock "0:00:14"]
[BlackClock "0:00:23"]

1. Nf3 {[%clk 0:03:00]}  Nf6 {[%clk 0:02:59]} 2. g3 {[%clk 0:02:58]}  b5 {[%clk 0:02:58]} 3. Bg2 {[%clk 0:02:59]}  Bb7 {[%clk 0:02:58]} 4. O-O {[%clk 0:02:58]}  g6 {[%clk 0:02:58]} 5. Na3 {[%clk 0:02:53]}  a6 {[%clk 0:02:57]} 6. c4 {[%clk 0:02:52]}  b4 {[%clk 0:02:57]} 7. Nc2 {[%clk 0:02:52]}  a5 {[%clk 0:02:57]} 8. b3 {[%clk 0:02:47]}  Bg7 {[%clk 0:02:57]} 9. Bb2 {[%clk 0:02:48]}  O-O {[%clk 0:02:57]} 10. a3 {[%clk 0:02:49]}  c5 {[%clk 0:02:55]} 11. d4 {[%clk 0:02:49]}  d6 {[%clk 0:02:52]} 12. d5 {[%clk 0:02:49]}  Nbd7 {[%clk 0:02:48]} 13. a4 {[%clk 0:02:43]}  Ne4 {[%clk 0:02:45]} 14. Bxg7 {[%clk 0:02:42]}  Kxg7 {[%clk 0:02:46]} 15. Ne3 {[%clk 0:02:39]}  Nc3 {[%clk 0:02:46]} 16. Qc2 {[%clk 0:02:40]}  Nf6 {[%clk 0:02:46]} 17. Nd1 {[%clk 0:02:27]}  Nxd1 {[%clk 0:02:34]} 18. Raxd1 {[%clk 0:02:24]}  Qc7 {[%clk 0:02:35]} 19. e4 {[%clk 0:01:54]}  Rae8 {[%clk 0:02:34]} 20. Qb2 {[%clk 0:01:31]}  Kg8 {[%clk 0:01:54]} 21. Rfe1 {[%clk 0:01:25]}  Bc8 {[%clk 0:01:53]} 22. e5 {[%clk 0:01:24]}  Ng4 {[%clk 0:01:49]} 23. exd6 {[%clk 0:00:44]}  exd6 {[%clk 0:01:47]} 24. h3 {[%clk 0:00:44]}  Nh6 {[%clk 0:01:43]} 25. Ng5 {[%clk 0:00:45]}  Rxe1+ {[%clk 0:01:28]} 26. Rxe1 {[%clk 0:00:46]}  Qd8 {[%clk 0:01:26]} 27. Ne4 {[%clk 0:00:17]}  f5 {[%clk 0:01:21]} 28. Nd2 {[%clk 0:00:17]}  Nf7 {[%clk 0:01:14]} 29. f4 {[%clk 0:00:16]}  Re8 {[%clk 0:01:14]} 30. Rxe8+ {[%clk 0:00:16]}  Qxe8 {[%clk 0:01:15]} 31. Kf2 {[%clk 0:00:17]}  Qe7 {[%clk 0:01:14]} 32. Nf3 {[%clk 0:00:17]}  Bd7 {[%clk 0:01:14]} 33. Bf1 {[%clk 0:00:17]}  Nd8 {[%clk 0:01:02]} 34. Bd3 {[%clk 0:00:18]}  Qg7 {[%clk 0:01:02]} 35. Qxg7+ {[%clk 0:00:13]}  Kxg7 {[%clk 0:01:03]} 36. Ke3 {[%clk 0:00:14]}  Nf7 {[%clk 0:01:00]} 37. Be2 {[%clk 0:00:13]}  Nh6 {[%clk 0:01:00]} 38. Ng5 {[%clk 0:00:13]}  Ng8 {[%clk 0:00:59]} 39. Bd3 {[%clk 0:00:08]}  Ne7 {[%clk 0:00:59]} 40. Nf3 {[%clk 0:00:08]}  h6 {[%clk 0:00:58]} 41. Kd2 {[%clk 0:00:07]}  Kf6 {[%clk 0:00:58]} 42. h4 {[%clk 0:00:08]}  Kg7 {[%clk 0:00:57]} 43. Ke3 {[%clk 0:00:08]}  Ng8 {[%clk 0:00:54]} 44. h5 {[%clk 0:00:04]}  gxh5 {[%clk 0:00:52]} 45. Nh4 {[%clk 0:00:05]}  Ne7 {[%clk 0:00:49]} 46. Be2 {[%clk 0:00:04]}  Be8 {[%clk 0:00:49]} 47. Bd3 {[%clk 0:00:04]}  Bg6 {[%clk 0:00:49]} 48. Be2 {[%clk 0:00:04]}  Kf6 {[%clk 0:00:49]} 49. Bd3 {[%clk 0:00:05]}  Nc8 {[%clk 0:00:49]} 50. Be2 {[%clk 0:00:05]}  Nb6 {[%clk 0:00:49]} 51. Bd3 {[%clk 0:00:04]}  Na8 {[%clk 0:00:46]} 52. Bc2 {[%clk 0:00:04]}  Nc7 {[%clk 0:00:47]} 53. Bd3 {[%clk 0:00:05]}  Ne8 {[%clk 0:00:47]} 54. Bc2 {[%clk 0:00:06]}  Ng7 {[%clk 0:00:46]} 55. Bd3 {[%clk 0:00:07]}  Bf7 {[%clk 0:00:46]} 56. Bc2 {[%clk 0:00:07]}  Be8 {[%clk 0:00:45]} 57. Bd3 {[%clk 0:00:08]}  Bd7 {[%clk 0:00:43]} 58. Bc2 {[%clk 0:00:08]}  Be8 {[%clk 0:00:42]} 59. Bd3 {[%clk 0:00:09]}  Bg6 {[%clk 0:00:42]} 60. Bc2 {[%clk 0:00:09]}  Ne8 {[%clk 0:00:42]} 61. Bd3 {[%clk 0:00:10]}  Nc7 {[%clk 0:00:35]} 62. Bc2 {[%clk 0:00:11]}  Na8 {[%clk 0:00:35]} 63. Bd3 {[%clk 0:00:11]}  Nb6 {[%clk 0:00:36]} 64. Bc2 {[%clk 0:00:12]}  Nc8 {[%clk 0:00:35]} 65. Bd3 {[%clk 0:00:12]}  Ne7 {[%clk 0:00:35]} 66. Bc2 {[%clk 0:00:13]}  Bf7 {[%clk 0:00:35]} 67. Bd3 {[%clk 0:00:13]}  Be8 {[%clk 0:00:31]} 68. Bc2 {[%clk 0:00:13]}  Bg6 {[%clk 0:00:30]} 69. Bd3 {[%clk 0:00:13]}  Be8 {[%clk 0:00:30]} 70. Bc2 {[%clk 0:00:14]}  Bd7 {[%clk 0:00:28]} 71. Bd3 {[%clk 0:00:14]}  Be8 {[%clk 0:00:23]} 1/2-1/2


[Site "https://www.chess.com"]

[Event "Titled Tuesday Blitz May 16 Early 2023"]
[White "Dubov, Daniil"]
[Black "Mitrabha, Guha"]
[WhiteFideId "24126055"]
[BlackFideId "5057000"]
[WhiteElo "2793"]
[BlackElo "2507"]
[Result "1-0"]
[Round "05"]
[TimeControl "180+2"]
[Date "2023.05.16"]
[WhiteClock "0:00:07"]
[BlackClock "0:00:03"]

1. e4 {[%clk 0:03:00]}  c6 {[%clk 0:02:55]} 2. d4 {[%clk 0:03:00]}  d5 {[%clk 0:02:55]} 3. e5 {[%clk 0:03:01]}  Bf5 {[%clk 0:02:55]} 4. Nf3 {[%clk 0:03:01]}  e6 {[%clk 0:02:55]} 5. Be2 {[%clk 0:03:02]}  Ne7 {[%clk 0:02:56]} 6. Nbd2 {[%clk 0:03:01]}  Nd7 {[%clk 0:02:57]} 7. O-O {[%clk 0:03:01]}  Bg6 {[%clk 0:02:52]} 8. Re1 {[%clk 0:03:01]}  Nf5 {[%clk 0:02:52]} 9. Nf1 {[%clk 0:03:01]}  Be7 {[%clk 0:02:52]} 10. Bd3 {[%clk 0:03:00]}  O-O {[%clk 0:02:51]} 11. Ng3 {[%clk 0:02:58]}  Nxg3 {[%clk 0:02:48]} 12. hxg3 {[%clk 0:02:55]}  c5 {[%clk 0:02:47]} 13. Bxg6 {[%clk 0:02:52]}  fxg6 {[%clk 0:02:46]} 14. Be3 {[%clk 0:02:34]}  Rc8 {[%clk 0:02:38]} 15. c3 {[%clk 0:02:17]}  Qb6 {[%clk 0:02:28]} 16. Qe2 {[%clk 0:02:13]}  a5 {[%clk 0:02:19]} 17. Rac1 {[%clk 0:01:55]}  c4 {[%clk 0:01:59]} 18. Bg5 {[%clk 0:01:54]}  Qd8 {[%clk 0:01:56]} 19. Bxe7 {[%clk 0:01:53]}  Qxe7 {[%clk 0:01:57]} 20. Qe3 {[%clk 0:01:48]}  b5 {[%clk 0:01:55]} 21. a3 {[%clk 0:01:45]}  Nb6 {[%clk 0:01:53]} 22. g4 {[%clk 0:01:43]}  b4 {[%clk 0:01:46]} 23. axb4 {[%clk 0:01:42]}  axb4 {[%clk 0:01:46]} 24. g3 {[%clk 0:01:36]}  h6 {[%clk 0:01:39]} 25. g5 {[%clk 0:01:27]}  Ra8 {[%clk 0:01:03]} 26. Ra1 {[%clk 0:01:03]}  b3 {[%clk 0:00:57]} 27. Rxa8 {[%clk 0:00:39]}  Nxa8 {[%clk 0:00:46]} 28. Ra1 {[%clk 0:00:36]}  Nb6 {[%clk 0:00:46]} 29. gxh6 {[%clk 0:00:33]}  gxh6 {[%clk 0:00:44]} 30. Qxh6 {[%clk 0:00:22]}  Rxf3 {[%clk 0:00:20]} 31. Qxg6+ {[%clk 0:00:22]}  Kf8 {[%clk 0:00:20]} 32. Ra6 {[%clk 0:00:18]}  Qb7 {[%clk 0:00:18]} 33. Qh6+ {[%clk 0:00:18]}  Ke7 {[%clk 0:00:16]} 34. Qh4+ {[%clk 0:00:10]}  Kd7 {[%clk 0:00:06]} 35. Ra7 {[%clk 0:00:10]}  Qxa7 {[%clk 0:00:06]} 36. Qh7+ {[%clk 0:00:10]}  Kc6 {[%clk 0:00:07]} 37. Qxa7 {[%clk 0:00:11]}  Rd3 {[%clk 0:00:07]} 38. g4 {[%clk 0:00:09]}  Rd2 {[%clk 0:00:07]} 39. Qa3 {[%clk 0:00:08]}  Rd3 {[%clk 0:00:05]} 40. g5 {[%clk 0:00:08]}  Rf3 {[%clk 0:00:06]} 41. Qd6+ {[%clk 0:00:08]}  Kb5 {[%clk 0:00:06]} 42. Qxe6 {[%clk 0:00:08]}  Rxc3 {[%clk 0:00:06]} 43. Qe8+ {[%clk 0:00:07]}  Kb4 {[%clk 0:00:05]} 44. Qe7+ {[%clk 0:00:06]}  Ka4 {[%clk 0:00:03]} 45. bxc3 {[%clk 0:00:07]} 1-0


[Site "https://www.chess.com"]

[Event "Titled Tuesday Blitz May 16 Early 2023"]
[White "Pichot, Alan"]
[Black "Tabatabaei, M. Amin"]
[WhiteFideId "110973"]
[BlackFideId "12521213"]
[WhiteElo "2573"]
[BlackElo "2575"]
[Result "0-1"]
[Round "05"]
[TimeControl "180+2"]
[Date "2023.05.16"]
[WhiteClock "0:00:00"]
[BlackClock "0:00:10"]

1. e4 {[%clk 0:03:00]}  c5 {[%clk 0:02:55]} 2. Nf3 {[%clk 0:03:01]}  e6 {[%clk 0:02:56]} 3. d4 {[%clk 0:03:00]}  cxd4 {[%clk 0:02:56]} 4. Nxd4 {[%clk 0:03:01]}  Nc6 {[%clk 0:02:57]} 5. Nc3 {[%clk 0:02:59]}  a6 {[%clk 0:02:57]} 6. Nxc6 {[%clk 0:02:56]}  bxc6 {[%clk 0:02:58]} 7. Bd3 {[%clk 0:02:57]}  d5 {[%clk 0:02:59]} 8. O-O {[%clk 0:02:56]}  Nf6 {[%clk 0:02:59]} 9. Qe2 {[%clk 0:02:55]}  Be7 {[%clk 0:02:59]} 10. Bd2 {[%clk 0:02:54]}  a5 {[%clk 0:02:59]} 11. Kh1 {[%clk 0:02:47]}  Qb6 {[%clk 0:02:58]} 12. b3 {[%clk 0:02:42]}  Ba6 {[%clk 0:02:58]} 13. f4 {[%clk 0:01:56]}  h5 {[%clk 0:02:51]} 14. Na4 {[%clk 0:01:50]}  Bxd3 {[%clk 0:02:49]} 15. cxd3 {[%clk 0:01:50]}  Qb5 {[%clk 0:02:50]} 16. e5 {[%clk 0:01:36]}  Ne4 {[%clk 0:02:21]} 17. Rac1 {[%clk 0:01:34]}  Nxd2 {[%clk 0:02:08]} 18. Qxd2 {[%clk 0:01:34]}  g6 {[%clk 0:02:09]} 19. Rc2 {[%clk 0:01:31]}  O-O {[%clk 0:02:05]} 20. Rfc1 {[%clk 0:01:30]}  Rfc8 {[%clk 0:02:06]} 21. Nc5 {[%clk 0:01:21]}  Rab8 {[%clk 0:01:44]} 22. d4 {[%clk 0:01:20]}  Qb4 {[%clk 0:01:41]} 23. Qd3 {[%clk 0:01:19]}  Bxc5 {[%clk 0:01:38]} 24. Rxc5 {[%clk 0:01:17]}  a4 {[%clk 0:01:38]} 25. R1c3 {[%clk 0:01:04]}  Qa3 {[%clk 0:01:28]} 26. Qd1 {[%clk 0:00:51]}  Qxa2 {[%clk 0:01:25]} 27. bxa4 {[%clk 0:00:46]}  Rb2 {[%clk 0:00:46]} 28. Rc2 {[%clk 0:00:22]}  Qxa4 {[%clk 0:00:45]} 29. h3 {[%clk 0:00:12]}  Rxc2 {[%clk 0:00:43]} 30. Rxc2 {[%clk 0:00:10]}  c5 {[%clk 0:00:43]} 31. f5 {[%clk 0:00:01]}  exf5 {[%clk 0:00:31]} 32. e6 {[%clk 0:00:01]}  fxe6 {[%clk 0:00:31]} 33. Qe2 {[%clk 0:00:02]}  Kf7 {[%clk 0:00:26]} 34. dxc5 {[%clk 0:00:02]}  h4 {[%clk 0:00:17]} 35. Rb2 {[%clk 0:00:02]}  Qa1+ {[%clk 0:00:10]} 36. Kh2 {[%clk 0:00:02]}  Rxc5 {[%clk 0:00:10]} 37. Rb7+ {[%clk 0:00:02]}  Kf6 {[%clk 0:00:11]} 38. Qf2 {[%clk 0:00:01]}  Qe5+ {[%clk 0:00:11]} 39. g3 {[%clk 0:00:00]}  hxg3+ {[%clk 0:00:10]} 0-1


[Site "https://www.chess.com"]